Cogmind - Beta 16 --- EXPLORER MODE // 2025.11.11 @ 15:54:21 Player: Leif Result: Destroyed by G-67 Veteran with Field Laser Performance ------------- Evolutions (6) 3000 Regions Visited (11) 2200 Robots Destroyed (1) 5 Value Destroyed (15) 15 Prototype IDs (1) 20 Alien Tech Used (0) 0 Bonus (3017) 3017 TOTAL SCORE: 8257 Bonus ------- Pacifist 1987 Met Warlord at Base 500 MAIN.C Attacked Warlord 500 Warlord Defense Kills 30 Cogmind --------- Core Integrity 0/1150 Matter 173/300 Energy 98/100 System Corruption 0% Temperature Cool (24) Movement Core (50) Location -4/Extension Parts ------- > --- POWER (11) ------- (None) > --- PROPULSION (5) --- (None) > --- UTILITY (2) ------ (None) > --- WEAPON (2) ------- (None) > --- INVENTORY (5) ---- Neutrino Core Micro Fission Core Antimatter Reactor Antimatter Reactor Peak State ------------ > --- POWER ------------ Neutrino Core Micro Fission Core Micro Fission Core Antimatter Reactor Antimatter Reactor Light Antimatter Reactor > --- PROPULSION ------- Cesium-ion Thruster Cesium-ion Thruster Cesium-ion Thruster > --- UTILITY ---------- (None) > --- WEAPON ----------- Backup Laser III > --- INVENTORY -------- (None) [Rating: 51] Favorites ----------- Power Backup Power III Engine Backup Power III Power Core Micro Fission Core Reactor Light Antimatter Reactor Propulsion Cesium-ion Thruster Hover Unit Backup Propulsion III Flight Unit Cesium-ion Thruster Utility Backup Plating III Protection Backup Plating III Weapon Backup Laser III Energy Gun Backup Laser III Build | -11 -10 -9 -8 -7 -6 -5 -5 -5 -4 -4 -4 ------- Run | Yrd Mat Mat Mat Fac Fac Fac Upp War Pro Fac Ext Slots Evolved 13 | . 1 2 2 2 2 2 . . . 2 . Power 10 | . . . 2 2 2 2 . . . 2 . Propulsion 3 | . 1 2 . . . . . . . . . Utility . | . . . . . . . . . . . . Weapon . | . . . . . . . . . . . . Parts Attached 16 | . . . . . . . . 6 . 10 . Power 6 | . . . . . . . . 1 . 5 . Engine . | . . . . . . . . . . . . Core 3 | . . . . . . . . 1 . 2 . Reactor 3 | . . . . . . . . . . 3 . Propulsion 10 | . . . . . . . . 5 . 5 . Treads . | . . . . . . . . . . . . Leg . | . . . . . . . . . . . . Wheel . | . . . . . . . . . . . . Hover . | . . . . . . . . . . . . Flight 10 | . . . . . . . . 5 . 5 . Utility . | . . . . . . . . . . . . Device . | . . . . . . . . . . . . Storage . | . . . . . . . . . . . . Processor . | . . . . . . . . . . . . Hackware . | . . . . . . . . . . . . Protection . | . . . . . . . . . . . . Artifact . | . . . . . . . . . . . . Weapon . | . . . . . . . . . . . . Energy Gun . | . . . . . . . . . . . . Energy Cannon . | . . . . . . . . . . . . Ballistic Gun . | . . . . . . . . . . . . Ballistic Cannon . | . . . . . . . . . . . . Launcher . | . . . . . . . . . . . . Special Weapon . | . . . . . . . . . . . . Impact Weapon . | . . . . . . . . . . . . Slashing Weapon . | . . . . . . . . . . . . Piercing Weapon . | . . . . . . . . . . . . Special Melee Weapon . | . . . . . . . . . . . . Unidentified Prototypes 1 | . . . . . . . . . . 1 . Parts Lost 17 | . . . . . . . . 8 . 3 6 Power 3 | . . . . . . . . 2 . . 1 Propulsion 11 | . . . . . . . . 3 . 3 5 Utility 2 | . . . . . . . . 2 . . . Weapon 1 | . . . . . . . . 1 . . . Highest Loss Streak 6 | . . . . . . . . 4 . 3 6 To Critical Strikes . | . . . . . . . . . . . . Average Backups . | . . . . . . . . . . 1 3 Power . | . . . . . . . . . . 1 3 Propulsion . | . . . . . . . . . . . . Utility . | . . . . . . . . . . . . Weapon . | . . . . . . . . . . . . Tool/Special . | . . . . . . . . . . . . Unused Backups 1 | . . . . . . . . . . 1 . Power . | . . . . . . . . . . . . Propulsion 1 | . . . . . . . . . . 1 . Utility . | . . . . . . . . . . . . Weapon . | . . . . . . . . . . . . Tool/Special . | . . . . . . . . . . . . Average Slot Usage (%) 22 | . . . . . . . . 33 27 32 21 Engine 2 | . . . . . . . . 6 . . . Core 2 | . . . . . . . . . 5 8 . Reactor 1 | . . . . . . . . . . 6 3 Hover 2 | . . . . . . . . 6 . . . Flight 6 | . . . . . . . . 4 16 13 17 Protection 2 | . . . . . . . . 6 . . . Energy Gun 4 | . . . . . . . . 8 5 3 . Peak Build Rating 51 | . . . . . . . . 27 18 51 49 Average Rating 17 | . . . . . . . . 18 18 35 35 On Entrance 7 | . . . . . . . . . 18 18 49 Avg Prop Armor Cover (%) 5 | . . . . . . . . . . . 5 Naked Turns 727 | . 40 37 111 220 6 55 4 177 . 49 28 Heaviest Build 70 | . . . . . . . . 12 7 70 16 Greatest Support 35 | 3 3 3 3 3 3 3 3 25 15 35 35 Greatest Overweight (x) 4 | . . . . . . . . . . 4 . Average Overweight (x) . | . . . . . . . . . . . . Largest Inventory Capacity 5 | 5 5 5 5 5 5 5 5 5 5 5 5 Average Capacity 5 | 5 5 5 5 5 5 5 5 5 5 5 5 Most Carried 5 | . . . . . . . . 5 . 5 5 Average Carried . | . . . . . . . . . . 2 3 Final Capacity 5 | 5 5 5 5 5 5 5 5 5 5 5 5 Final Carried 4 | . . . . . . . . . . 4 4 Class Distribution -------------------- 74% | Hacker-Mutant 12% | Hacker-Sprinter 6% | Scavenger-Sprinter 6% | Generator-Mutant Dominant Class ---------------- Hacker-Mutant | -10/Materials Hacker-Mutant | -9/Materials Hacker-Mutant | -8/Materials Hacker-Mutant | -7/Factory Hacker-Mutant | -6/Factory Hacker-Mutant | -5/Factory Hacker-Mutant | -5/Upper Caves Hacker-Mutant | -5/Warlord Hacker-Sprinter | -4/Proximity Caves Hacker-Mutant | -4/Factory Hacker-Mutant | -4/Extension Resources | -11 -10 -9 -8 -7 -6 -5 -5 -5 -4 -4 -4 ----------- Run | Yrd Mat Mat Mat Fac Fac Fac Upp War Pro Fac Ext Matter Collected 326 | 200 . . . . . . . 68 . . 58 Remotely . | . . . . . . . . . . . . Salvage Created 15 | . . . . . . . . 15 . . . Parts 4 | . . . . . . . . 4 . . . Haulers Intercepted . | . . . . . . . . . . . . Recyclers Shooed . | . . . . . . . . . . . . Parts Field Recycled . | . . . . . . . . . . . . Retrieved Matter . | . . . . . . . . . . . . Parts Self-Destructed . | . . . . . . . . . . . . Prevented . | . . . . . . . . . . . . Parts Restored . | . . . . . . . . . . . . Kills | -11 -10 -9 -8 -7 -6 -5 -5 -5 -4 -4 -4 ------- Run | Yrd Mat Mat Mat Fac Fac Fac Upp War Pro Fac Ext Combat Hostiles Destroyed 1 | . . . . . . . . 1 . . . Guns 1 | . . . . . . . . 1 . . . Classes Destroyed 1 | . . . . . . . . 1 . . . Saboteur 1 | . . . . . . . . 1 . . . Best Kill Streak 1 | . . . . . . . . 1 . . . Combat Bots Only 1 | . . . . . . . . 1 . . . Max Kills in Single Turn 1 | . . . . . . . . 1 . . . Gunslinging . | . . . . . . . . . . . . Exploded . | . . . . . . . . . . . . Melee . | . . . . . . . . . . . . Uniques/NPCs Destroyed . | . . . . . . . . . . . . Combat | -11 -10 -9 -8 -7 -6 -5 -5 -5 -4 -4 -4 -------- Run | Yrd Mat Mat Mat Fac Fac Fac Upp War Pro Fac Ext Hostile Shots Fired 619 | . 1 8 27 100 . 59 . 173 23 187 41 Missed 270 | . . 1 10 38 . 20 . 83 14 86 18 Hits 349 | . 1 7 17 62 . 39 . 90 9 101 23 Melee 1 | . . . . . . . . 1 . . . Projectile 348 | . 1 7 17 62 . 39 . 89 9 101 23 AOE 7 | . . . . . . 1 . . . 6 . Critical Strikes 10 | . . . 1 3 . . . 5 . . 1 Damage Taken 3794 | . 10 47 149 599 . 449 . 856 98 1221 365 Core 2809 | . 10 47 149 599 . 449 . 316 81 954 204 Absorbed by Shields 60 | . . . . . . . . . . 60 . Ignored by Resistances 2292 | . 6 30 91 348 . 268 . 514 57 766 212 Core Remaining (%) 69 | 100 96 88 72 14 100 . . . 15 . . Volleys Fired 5 | . . . . . . . . 5 . . . Largest 2 | . . . . . . . . 2 . . . Hottest 80 | . . . . . . . . 80 . . . Shots Fired 10 | . . . . . . . . 10 . . . Gun 10 | . . . . . . . . 10 . . . Cannon . | . . . . . . . . . . . . Launcher . | . . . . . . . . . . . . Special . | . . . . . . . . . . . . Kinetic . | . . . . . . . . . . . . Thermal 10 | . . . . . . . . 10 . . . Explosive . | . . . . . . . . . . . . Electromagnetic . | . . . . . . . . . . . . Robot Hit Streak 8 | . . . . . . . . 8 . . . Robot Miss Streak 1 | . . . . . . . . 1 . . . Penetration Max . | . . . . . . . . . . . . Secondary Targets . | . . . . . . . . . . . . Shots Hit Robots 8 | . . . . . . . . 8 . . . Core Hits 3 | . . . . 2 . . . 1 . . . Critical Kills . | . . . . . . . . . . . . Critical Parts Destroyed . | . . . . . . . . . . . . Critical Strikes . | . . . . . . . . . . . . Melee Attacks . | . . . . . . . . . . . . Impact . | . . . . . . . . . . . . Slashing . | . . . . . . . . . . . . Piercing . | . . . . . . . . . . . . Sneak Attacks . | . . . . . . . . . . . . Combat Hostiles . | . . . . . . . . . . . . Follow-up Attacks . | . . . . . . . . . . . . Damage Inflicted 147 | . . . . 14 . 13 . 120 . . . Guns 120 | . . . . . . . . 120 . . . Cannons . | . . . . . . . . . . . . Explosions . | . . . . . . . . . . . . Melee . | . . . . . . . . . . . . Ramming 27 | . . . . 14 . 13 . . . . . Kinetic . | . . . . . . . . . . . . Thermal 120 | . . . . . . . . 120 . . . Explosive . | . . . . . . . . . . . . Electromagnetic . | . . . . . . . . . . . . Impact . | . . . . . . . . . . . . Slashing . | . . . . . . . . . . . . Piercing . | . . . . . . . . . . . . Highest Corruption 5 | . . . 1 . . . . 5 5 . . Average Corruption 4 | . . . 1 . . . . 3 5 . . Corruption Purged . | . . . . . . . . . . . . Corruption Blocked . | . . . . . . . . . . . . Effects 3 | . . . . . . . . 3 . . . Message Errors 1 | . . . . . . . . 1 . . . Matter Fused 1 | . . . . . . . . 1 . . . Heat Flow Errors 1 | . . . . . . . . 1 . . . Overload Shots . | . . . . . . . . . . . . Overflow Damage . | . . . . . . . . . . . . Projectiles . | . . . . . . . . . . . . Explosions . | . . . . . . . . . . . . Melee . | . . . . . . . . . . . . Knockbacks . | . . . . . . . . . . . . Impact . | . . . . . . . . . . . . Kinetic . | . . . . . . . . . . . . Secondary . | . . . . . . . . . . . . Self-Inflicted Damage 11 | . . . . 5 . 6 . . . . . Shots . | . . . . . . . . . . . . Rammed 10 | . . 2 . 7 . 1 . . . . . Targets Rammed 10 | . . 2 . 7 . 1 . . . . . Kicked . | . . . . . . . . . . . . Crushed . | . . . . . . . . . . . . Highest Temperature 391 | . . . . . . . . 220 . 391 333 Average Temperature 152 | . . . . . . . . 69 . 171 132 Received Heat Transfer 787 | . 9 42 54 144 . 9 . 252 21 114 142 Effects 5 | . . . . . . . . . . 5 . Shutdowns 5 | . . . . . . . . . . 5 . Siege Activations . | . . . . . . . . . . . . Martial Activations . | . . . . . . . . . . . . Shielding Activations . | . . . . . . . . . . . . Robots Disrupted . | . . . . . . . . . . . . Combat Hostiles . | . . . . . . . . . . . . Robots Corrupted . | . . . . . . . . . . . . Combat Hostiles . | . . . . . . . . . . . . Parts Fried . | . . . . . . . . . . . . Impact Corruptions . | . . . . . . . . . . . . Robots Melted . | . . . . . . . . . . . . Combat Hostiles . | . . . . . . . . . . . . Parts Melted . | . . . . . . . . . . . . Heat Transferred 333 | . . . . . . . . 333 . . . Parts Sabotaged . | . . . . . . . . . . . . Parts Stolen . | . . . . . . . . . . . . Parts Stripped . | . . . . . . . . . . . . Power Chain Reactions . | . . . . . . . . . . . . Alert | -11 -10 -9 -8 -7 -6 -5 -5 -5 -4 -4 -4 ------- Run | Yrd Mat Mat Mat Fac Fac Fac Upp War Pro Fac Ext Maximum Alert Level . | . . . . . . . . . . . . Low Security (%) 100 | 100 100 100 100 100 100 100 . . . 100 100 Level 1 . | . . . . . . . . . . . . Level 2 . | . . . . . . . . . . . . Level 3 . | . . . . . . . . . . . . Level 4 . | . . . . . . . . . . . . Level 5 . | . . . . . . . . . . . . High Security . | . . . . . . . . . . . . Max Security . | . . . . . . . . . . . . Peak Influence 177 | . . . 30 30 . 60 . . . 177 90 Initial 63 | . . . . 9 . . . . . 7 63 Average 13 | . . . 6 12 . 4 . . . 11 39 Influence Increases 575 | . . . 75 105 . 60 . 20 30 252 33 Destroy 0b10 Robot/C 20 | . . . . . . . . 20 . . . Successful Hack 30 | . . . . . . . . . . 12 18 Partial Spotted 30 | . . . 15 . . . . . . . 15 Lose Combat Pursuer 495 | . . . 60 105 . 60 . . 30 240 . Influence Decreases 575 | . . . 45 135 . . 32 48 15 90 210 Entered New Map 203 | . . . . 21 . . 32 28 . 8 114 Time Decay 281 | . . . 30 114 . . . 10 15 52 60 Lost Part 76 | . . . . . . . . 10 . 30 36 Purge Threat 15 | . . . 15 . . . . . . . . Squads Dispatched 4 | . . 1 . 1 . . . . . 1 1 Investigation 1 | . . . . . . . . . . . 1 Extermination 1 | . . . . . . . . . . 1 . Reinforcement 2 | . . 1 . 1 . . . . . . . Assault . | . . . . . . . . . . . . Garrison . | . . . . . . . . . . . . Intercept . | . . . . . . . . . . . . Searches Triggered . | . . . . . . . . . . . . Construction Impeded . | . . . . . . . . . . . . Haulers Reinforced 1 | . . . . 1 . . . . . . . Active Scanning Responses . | . . . . . . . . . . . . Cargo Convoy Interrupts . | . . . . . . . . . . . . Stealth | -11 -10 -9 -8 -7 -6 -5 -5 -5 -4 -4 -4 --------- Run | Yrd Mat Mat Mat Fac Fac Fac Upp War Pro Fac Ext Distress Signals 6 | . . 1 1 . . 1 . . . 3 . Communications Jammed . | . . . . . . . . . . . . Distress Signals . | . . . . . . . . . . . . Times Spotted 135 | . 2 7 12 12 . 10 . 44 6 32 10 Peak Tracking Total 20 | . 2 6 10 7 . 9 . 18 4 20 9 Tactical Retreats 12 | . . . 2 4 . 1 . . 1 4 . Traps | -11 -10 -9 -8 -7 -6 -5 -5 -5 -4 -4 -4 ------- Run | Yrd Mat Mat Mat Fac Fac Fac Upp War Pro Fac Ext Traps Triggered 4 | . . . 1 . . . . . . 2 1 Indirectly . | . . . . . . . . . . . . Trap Hack Attempts . | . . . . . . . . . . . . Triggered . | . . . . . . . . . . . . Disarmed . | . . . . . . . . . . . . Reprogrammed . | . . . . . . . . . . . . Reused . | . . . . . . . . . . . . Traps Extracted . | . . . . . . . . . . . . Installed . | . . . . . . . . . . . . Triggered . | . . . . . . . . . . . . Machines | -11 -10 -9 -8 -7 -6 -5 -5 -5 -4 -4 -4 ---------- Run | Yrd Mat Mat Mat Fac Fac Fac Upp War Pro Fac Ext Machines Disabled . | . . . . . . . . . . . . Max in Single Turn . | . . . . . . . . . . . . Machines Repaired . | . . . . . . . . . . . . Machines Dismantled . | . . . . . . . . . . . . Machines Sabotaged . | . . . . . . . . . . . . Overloaded Fab Kills . | . . . . . . . . . . . . Hacking | -11 -10 -9 -8 -7 -6 -5 -5 -5 -4 -4 -4 --------- Run | Yrd Mat Mat Mat Fac Fac Fac Upp War Pro Fac Ext Machines Accessed 12 | . . 1 2 1 . . . 3 . 2 3 Terminals 9 | . . 1 2 1 . . . . . 2 3 Fabricators . | . . . . . . . . . . . . Repair Stations . | . . . . . . . . . . . . Recycling Units . | . . . . . . . . . . . . Scanalyzers . | . . . . . . . . . . . . Garrison Access . | . . . . . . . . . . . . Total Hacks 21 | . . 1 3 2 . . . 7 . 3 5 Successful 17 | . . 1 2 1 . . . 7 . 2 4 Failed 4 | . . . 1 1 . . . . . 1 1 Catastrophic 1 | . . . . . . . . . . . 1 Database Lockouts . | . . . . . . . . . . . . Manual 6 | . . . . . . . . 4 . 2 . Terminals 14 | . . 1 3 2 . . . . . 3 5 Fabricators . | . . . . . . . . . . . . Repair Stations . | . . . . . . . . . . . . Recycling Units . | . . . . . . . . . . . . Scanalyzers . | . . . . . . . . . . . . Garrison Access . | . . . . . . . . . . . . Terminal Hacks 16 | . . 1 2 1 . . . 7 . 1 4 Record 8 | . . . . . . . . 6 . 1 1 Open Door 2 | . . . . . . . . 1 . . 1 Open DSF 1 | . . . . 1 . . . . . . . Level Access Points 1 | . . . . . . . . . . . 1 Branch Access Points 2 | . . 1 . . . . . . . . 1 Emergency Access Points 1 | . . . 1 . . . . . . . . Unreport Threat 1 | . . . 1 . . . . . . . . Fabricator Hacks . | . . . . . . . . . . . . Repair Station Hacks . | . . . . . . . . . . . . Recycling Unit Hacks . | . . . . . . . . . . . . Scanalyzer . | . . . . . . . . . . . . Garrison Access Hacks . | . . . . . . . . . . . . Unauthorized Hacks 1 | . . . . . . . . . . 1 . Terminals 1 | . . . . . . . . . . 1 . Assimilate 1 | . . . . . . . . . . 1 . Fabricators . | . . . . . . . . . . . . Repair Stations . | . . . . . . . . . . . . Recycling Units . | . . . . . . . . . . . . Scanalyzers . | . . . . . . . . . . . . Garrison Access . | . . . . . . . . . . . . Data Cores Recovered . | . . . . . . . . . . . . Used . | . . . . . . . . . . . . Hacking Detections 6 | . . . 2 1 . . . . . 2 1 Full Trace Events 1 | . . . . . . . . . . . 1 Feedback Events . | . . . . . . . . . . . . Feedback Blocked . | . . . . . . . . . . . . Robot Schematics Acquired . | . . . . . . . . . . . . Robots Built . | . . . . . . . . . . . . Authchips . | . . . . . . . . . . . . Time . | . . . . . . . . . . . . Total Robot Build Rating . | . . . . . . . . . . . . Part Schematics Acquired . | . . . . . . . . . . . . Parts Built . | . . . . . . . . . . . . Authchips . | . . . . . . . . . . . . Time . | . . . . . . . . . . . . Total Part Build Rating . | . . . . . . . . . . . . Part Studies Acquired . | . . . . . . . . . . . . Parts Repaired . | . . . . . . . . . . . . Time . | . . . . . . . . . . . . Parts Recycled . | . . . . . . . . . . . . Recycled Matter . | . . . . . . . . . . . . Retrieved Matter . | . . . . . . . . . . . . Retrieved Components . | . . . . . . . . . . . . Parts Scanalyzed . | . . . . . . . . . . . . Part Schematics Acquired . | . . . . . . . . . . . . Parts Damaged . | . . . . . . . . . . . . Bothacking | -11 -10 -9 -8 -7 -6 -5 -5 -5 -4 -4 -4 ------------ Run | Yrd Mat Mat Mat Fac Fac Fac Upp War Pro Fac Ext Used RIF Installer . | . . . . . . . . . . . . Robots Hacked . | . . . . . . . . . . . . Non-combat . | . . . . . . . . . . . . Combat . | . . . . . . . . . . . . Robot Hacks Applied . | . . . . . . . . . . . . Relay Couplers Released . | . . . . . . . . . . . . Fabnet Peak Effective % . | . . . . . . . . . . . . Robots Rewired . | . . . . . . . . . . . . Allies Hacked . | . . . . . . . . . . . . Hacks Repelled . | . . . . . . . . . . . . Allies | -11 -10 -9 -8 -7 -6 -5 -5 -5 -4 -4 -4 -------- Run | Yrd Mat Mat Mat Fac Fac Fac Upp War Pro Fac Ext Total Allies 2 | . . . . . . . . . . 1 1 Largest Group 1 | . . . . . . . . . . 1 1 Highest-Rated Group 46 | . . . . . . . . . . 26 46 Highest-Rated Ally 46 | . . . . . . . . . . 26 46 Total Orders . | . . . . . . . . . . . . Ally Attacks 5 | . . . . . . . . . . . 5 Total Damage 89 | . . . . . . . . . . . 89 Kills . | . . . . . . . . . . . . Allies Corrupted . | . . . . . . . . . . . . Allies Melted . | . . . . . . . . . . . . Intel | -11 -10 -9 -8 -7 -6 -5 -5 -5 -4 -4 -4 ------- Run | Yrd Mat Mat Mat Fac Fac Fac Upp War Pro Fac Ext Active Infowar (turns) . | . . . . . . . . . . . . Robot Analysis Total . | . . . . . . . . . . . . Derelict Logs Recovered . | . . . . . . . . . . . . Drone Launches . | . . . . . . . . . . . . Drone Recoveries . | . . . . . . . . . . . . Exploration | -11 -10 -9 -8 -7 -6 -5 -5 -5 -4 -4 -4 ------------- Run | Yrd Mat Mat Mat Fac Fac Fac Upp War Pro Fac Ext Turns Passed 1869 | 12 40 37 111 220 6 55 4 857 87 311 129 Spaces Moved 3029 | 24 79 70 222 401 11 109 5 957 298 370 483 Core 1394 | 24 79 70 222 401 11 109 5 332 . 85 56 Treads . | . . . . . . . . . . . . Legs . | . . . . . . . . . . . . Wheels . | . . . . . . . . . . . . Hover 545 | . . . . . . . . 545 . . . Flight 1090 | . . . . . . . . 80 298 285 427 Fastest Speed 18 | 50 50 50 50 50 50 50 50 23 29 18 18 Average Speed 48 | 50 50 50 50 50 50 50 50 62 29 58 23 Slowest Speed 349 | 50 50 50 50 50 50 50 50 80 29 349 50 Overloaded Moves . | . . . . . . . . . . . . Propulsion Burnouts . | . . . . . . . . . . . . Robots Hopped 2 | . . . . . . . . 1 . 1 . Potential Cave-ins . | . . . . . . . . . . . . Cave-ins Triggered . | . . . . . . . . . . . . Exploration Rate (%) 29 | 4 20 15 26 19 . 7 1 90 57 18 63 Regions Visited 11 Branch Regions 4 Pre-discovered Areas . | . . . . . . . . . . . . Known Exits Taken 10 | 1 1 1 1 1 1 1 . 1 1 1 . Unknown Exits Taken 1 | . . . . . . . 1 . . . . Scrap Searched . | . . . . . . . . . . . . Spaces Dug . | . . . . . . . . . . . . Terrain Destroyed . | . . . . . . . . . . . . Melee . | . . . . . . . . . . . . Projectile . | . . . . . . . . . . . . AOE . | . . . . . . . . . . . . Terrain Rammed . | . . . . . . . . . . . . Walls Destroyed . | . . . . . . . . . . . . Machines Disabled . | . . . . . . . . . . . . Actions | -11 -10 -9 -8 -7 -6 -5 -5 -5 -4 -4 -4 --------- Run | Yrd Mat Mat Mat Fac Fac Fac Upp War Pro Fac Ext Total 3403 | 23 78 71 221 419 10 109 6 1202 297 466 501 Wait 304 | . . . . 12 . . 2 229 . 50 11 Move 3015 | 23 78 69 221 400 10 109 4 954 297 367 483 Hop 2 | . . . . . . . . 1 . 1 . Pick Up 14 | . . . . . . . . 6 . 6 2 Fast Attach 6 | . . . . . . . . . . 5 1 Attach 23 | . . . . . . . . 6 . 14 3 Detach 15 | . . . . . . . . . . 14 1 Swap . | . . . . . . . . . . . . Drop 4 | . . . . . . . . 1 . 3 . Fire 5 | . . . . . . . . 5 . . . Melee . | . . . . . . . . . . . . Ram 9 | . . 2 . 7 . . . . . . . Kick . | . . . . . . . . . . . . Crush . | . . . . . . . . . . . . Escape Stasis 6 | . . . . . . . . . . 6 . Rewire . | . . . . . . . . . . . . Trap . | . . . . . . . . . . . . Miscellaneous . | . . . . . . . . . . . . Route ------- -11/Scrapyard -10/Materials -9/Materials (discovered 2 exits: *Mat / Min) -8/Materials -7/Factory -6/Factory -5/Factory -5/Upper Caves -5/Warlord -4/Proximity Caves -4/Factory -4/Extension (discovered 3 exits: Res x2 / Cet) History --------- Turn | Location | Event 4 | -11/Scrapyard | Identified exit to Materials 4 | -11/Scrapyard | Discovered exit to Materials (range 15) 13 | -11/Scrapyard | Entered Materials 13 | -10/Materials | Evolved 1 slot: Propulsion x1 51 | -10/Materials | Identified exit to Materials 51 | -10/Materials | Discovered exit to Materials (range 3) 53 | -10/Materials | Entered another Materials area 53 | -9/Materials | Evolved 2 slots: Propulsion x2 79 | -9/Materials | Identified exit to Mines 87 | -9/Materials | Identified exit to Materials 87 | -9/Materials | Discovered exit to Materials (range 7) 90 | -9/Materials | Entered another Materials area 90 | -8/Materials | Evolved 2 slots: Power x2 199 | -8/Materials | Identified exit to Factory 199 | -8/Materials | Discovered exit to Factory (range 6) 201 | -8/Materials | Entered Factory 201 | -7/Factory | Evolved 2 slots: Power x2 305 | -7/Factory | Build established: Hacker-Mutant 366 | -7/Factory | Core integrity fell below 50% 406 | -7/Factory | Core integrity fell below 20% 414 | -7/Factory | Identified exit to Factory 414 | -7/Factory | Discovered exit to Factory (range 15) 421 | -7/Factory | Entered another Factory area 421 | -6/Factory | Evolved 2 slots: Power x2 421 | -6/Factory | Identified exit to Factory 421 | -6/Factory | Discovered exit to Factory (range 10) 427 | -6/Factory | Entered another Factory area 427 | -5/Factory | Evolved 2 slots: Power x2 438 | -5/Factory | Spotted B-75 Beast 479 | -5/Factory | Identified exit to Upper Caves 479 | -5/Factory | Discovered exit to Upper Caves (range 6) 482 | -5/Factory | Entered Upper Caves 485 | -5/Upper Caves | A Derelict revealed a hidden shortcut to "reach the base" 486 | -5/Upper Caves | Entered Warlord 951 | -5/Warlord | Met Warlord 976 | -5/Warlord | Warlord's base attacked by MAIN.C 1161 | -5/Warlord | Core integrity fell below 50% 1193 | -5/Warlord | Spotted B-86 Titan 1196 | -5/Warlord | Spotted B-75 Beast 1226 | -5/Warlord | P-80 Master assimilated allied DO-31P(g) 1232 | -5/Warlord | Lost 4 parts (1p1n2u) 1326 | -5/Warlord | Warlord forces counterattacked 1332 | -5/Warlord | Spotted Striker 1335 | -5/Warlord | Spotted Executioner 1335 | -5/Warlord | Spotted Striker 1336 | -5/Warlord | Spotted Executioner 1340 | -5/Warlord | Identified exit to Proximity Caves 1340 | -5/Warlord | Discovered exit to Proximity Caves (range 12) 1343 | -5/Warlord | Entered Proximity Caves 1368 | -4/Proximity Caves | Lost 3 parts (2n1w) 1414 | -4/Proximity Caves | Spotted B-86 Titan 1416 | -4/Proximity Caves | Core integrity fell below 20% 1426 | -4/Proximity Caves | Identified exit to Factory 1426 | -4/Proximity Caves | Discovered exit to Factory (range 15) 1430 | -4/Proximity Caves | Entered Factory 1430 | -4/Factory | Evolved 2 slots: Power x2 1644 | -4/Factory | Spotted B-86 Titan 1674 | -4/Factory | Core integrity fell below 50% 1679 | -4/Factory | Lost 3 parts (3n) 1711 | -4/Factory | Spotted B-86 Titan 1712 | -4/Factory | Core integrity fell below 20% 1737 | -4/Factory | Identified exit to Extension 1737 | -4/Factory | Discovered exit to Extension (range 16) 1741 | -4/Factory | Entered Extension 1751 | -4/Extension | Rescued a captive Derelict 1759 | -4/Extension | Identified exit to Cetus 1778 | -4/Extension | Spotted B-86 Titan 1827 | -4/Extension | Identified exit to Research 1835 | -4/Extension | Spotted B-86 Titan 1870 | -4/Extension | Destroyed by G-67 Veteran with Field Laser Last Messages --------------- 01819_ Penetrated by Slug. 01822_ Diametric Drive destroyed. 01827_ Connecting with Terminal... >>Access(Main) Found 2 level access points to Research: (100,48) (197,42) Map updated. 01827_ ALERT: Suspicious activity at Terminal E003. Dispatching Investigation squad. 01836_ Machine disabled. 01836_ Diametric Drive destroyed. 01837_ Penetrated by Slug. 01837_ Diametric Drive destroyed. 01838_ Penetrated by Slug. 01839_ Diametric Drive destroyed. 01839_ Knocked back. 01842_ Diametric Drive destroyed. 01843_ Acquired 1 matter. 01869_ Critical hit (Burn: +50). Map ----- +----------------------------------------------------+ | ?????????????????????????????????????????????????? | | ?????????????????????????????????????????????????? | | ?????????????????????????????????????????????????? | | ?????????????????????????????????????????????????? | | ?????????????????????????????????????????????????? | | ?????????????????????????????????????????????????? | | ?????????????????????????????????????????????????? | | ?????????????????????????????????????????????????? | | ?????????????????????????????????????????????????? | | ?????????????????????????????????????????????????? | | ?????????????????????????????????????????????????? | | ?????????????????????????????????????????????????? | | ?????????????????????????????????????????????????? | | ?????????????????????????????????????????????????? | | ?????????????????????????????????????????????????? | | ?????????????????????????????????????????????????? | | ?????????????????????????????????????????????????? | | ?????????????????????????????????????????????????? | | ?????????????????????????????????????????????????? | | ?????????????????????????????????????????????????? | | ?????????????????????????????????????????????????? | | ?????????????????????????????????????????????????? | | ####################################### ?????????? | | ????????? | | k ??????>?? | | g @ !????????? | | R ut ????????? | | gg g kR ????????? | | #######################################A???????